[Event "*** SCC Grand Prix: Titled Tuesday Blitz"]
[Site "Chess.com"]
[Date "2020.06.23"]
[Round "6"]
[White "KaterynaLagno"]
[Black "Siniauski"]
[Result "1/2-1/2"]
[WhiteElo "2669"]
[BlackElo "2504"]
[TimeControl "180+1"]
[EndTime "11:07:48 PDT"]
[Termination "Game drawn by repetition"]

1. e4 {[%clk 0:03:00.9]} 1... e6 {[%clk 0:03:00.2]} 2. d4 {[%clk 0:03:00.6]}
2... d5 {[%clk 0:03:00.8]} 3. Nd2 {[%clk 0:03:01.2]} 3... c5 {[%clk 0:03:00.6]}
4. exd5 {[%clk 0:03:01]} 4... Qxd5 {[%clk 0:03:01.5]} 5. Ngf3 {[%clk 0:03:01]}
5... cxd4 {[%clk 0:03:02.1]} 6. Bc4 {[%clk 0:03:01.4]} 6... Qd8 {[%clk
0:03:02.8]} 7. O-O {[%clk 0:03:00.7]} 7... Nc6 {[%clk 0:03:02.8]} 8. Nb3 {[%clk
0:03:00.8]} 8... a6 {[%clk 0:03:02.9]} 9. Nbxd4 {[%clk 0:02:58.4]} 9... Nxd4
{[%clk 0:03:03.1]} 10. Nxd4 {[%clk 0:02:59.3]} 10... Bd6 {[%clk 0:03:02.9]} 11.
Nf3 {[%clk 0:02:46.4]} 11... Ne7 {[%clk 0:02:59.6]} 12. Qe2 {[%clk 0:02:37.1]}
12... O-O {[%clk 0:02:50]} 13. Bd3 {[%clk 0:02:35.6]} 13... Ng6 {[%clk
0:02:45.4]} 14. Rd1 {[%clk 0:02:32.3]} 14... Qc7 {[%clk 0:02:44.6]} 15. Qe4
{[%clk 0:02:22.6]} 15... Bd7 {[%clk 0:02:18.3]} 16. h4 {[%clk 0:02:12.2]} 16...
Bc6 {[%clk 0:02:16.6]} 17. Qg4 {[%clk 0:02:07.8]} 17... f5 {[%clk 0:02:08.4]}
18. Qc4 {[%clk 0:02:06.8]} 18... Bxf3 {[%clk 0:01:55.6]} 19. gxf3 {[%clk
0:01:56.7]} 19... Rae8 {[%clk 0:01:24.7]} 20. Qxc7 {[%clk 0:01:53.7]} 20... Bxc7
{[%clk 0:01:25.6]} 21. h5 {[%clk 0:01:53.3]} 21... Nf4 {[%clk 0:00:38.5]} 22.
Bxf4 {[%clk 0:01:52.4]} 22... Bxf4 {[%clk 0:00:39.4]} 23. Bc4 {[%clk 0:01:52.8]}
23... Kf7 {[%clk 0:00:32]} 24. Rd7+ {[%clk 0:01:48.6]} 24... Re7 {[%clk
0:00:32.1]} 25. Rad1 {[%clk 0:01:49.2]} 25... Kf6 {[%clk 0:00:26.3]} 26. a4
{[%clk 0:01:42]} 26... Rxd7 {[%clk 0:00:18]} 27. Rxd7 {[%clk 0:01:40.8]} 27...
Rf7 {[%clk 0:00:18.8]} 28. Rd8 {[%clk 0:01:37.9]} 28... Rc7 {[%clk 0:00:18.8]}
29. b3 {[%clk 0:01:32.5]} 29... b5 {[%clk 0:00:07]} 30. axb5 {[%clk 0:01:30.3]}
30... axb5 {[%clk 0:00:07.9]} 31. Bxb5 {[%clk 0:01:29]} 31... Rxc2 {[%clk
0:00:08]} 32. Bc4 {[%clk 0:01:28.5]} 32... e5 {[%clk 0:00:03.5]} 33. Rf8+ {[%clk
0:01:18.7]} 33... Kg5 {[%clk 0:00:03.6]} 34. Bd3 {[%clk 0:01:00.6]} 34... Rc1+
{[%clk 0:00:03.2]} 35. Kg2 {[%clk 0:01:00.7]} 35... g6 {[%clk 0:00:03.7]} 36.
hxg6 {[%clk 0:00:57.5]} 36... hxg6 {[%clk 0:00:04.6]} 37. b4 {[%clk 0:00:56.1]}
37... Rc3 {[%clk 0:00:03.8]} 38. Rd8 {[%clk 0:00:55.5]} 38... Rb3 {[%clk
0:00:03.9]} 39. b5 {[%clk 0:00:52.5]} 39... Rb2 {[%clk 0:00:04.3]} 40. Kf1
{[%clk 0:00:50.2]} 40... Kf6 {[%clk 0:00:02.5]} 41. Rd6+ {[%clk 0:00:48.9]}
41... Kg5 {[%clk 0:00:02.2]} 42. Rc6 {[%clk 0:00:48.2]} 42... Bd2 {[%clk
0:00:01.9]} 43. Rc5 {[%clk 0:00:40.1]} 43... Ba5 {[%clk 0:00:01.9]} 44. Rxe5
{[%clk 0:00:40.1]} 44... Bb6 {[%clk 0:00:02.5]} 45. Be2 {[%clk 0:00:40.5]} 45...
Rb1+ {[%clk 0:00:02.2]} 46. Kg2 {[%clk 0:00:40.1]} 46... Rb2 {[%clk 0:00:03.1]}
47. Re6 {[%clk 0:00:39.8]} 47... Bc5 {[%clk 0:00:02.7]} 48. Kg3 {[%clk
0:00:32.1]} 48... Rb3 {[%clk 0:00:02.8]} 49. Bc4 {[%clk 0:00:31.1]} 49... Rb4
{[%clk 0:00:02.5]} 50. Bf1 {[%clk 0:00:26.6]} 50... Rb3 {[%clk 0:00:02.4]} 51.
Rc6 {[%clk 0:00:26.6]} 51... Bd4 {[%clk 0:00:02.2]} 52. Rc4 {[%clk 0:00:22.1]}
52... Bb6 {[%clk 0:00:02]} 53. Ra4 {[%clk 0:00:16.9]} 53... Rb2 {[%clk
0:00:02.1]} 54. f4+ {[%clk 0:00:16]} 54... Kh6 {[%clk 0:00:01.9]} 55. Ra6 {[%clk
0:00:14.9]} 55... Bxf2+ {[%clk 0:00:02.1]} 56. Kf3 {[%clk 0:00:15.6]} 56... Bg1
{[%clk 0:00:02.6]} 57. Bc4 {[%clk 0:00:15.4]} 57... Rb4 {[%clk 0:00:02.3]} 58.
Bd3 {[%clk 0:00:13.9]} 58... Rb3 {[%clk 0:00:02.2]} 59. Ke2 {[%clk 0:00:14]}
59... Rb2+ {[%clk 0:00:02]} 60. Kd1 {[%clk 0:00:13.8]} 60... Be3 {[%clk
0:00:02.5]} 61. Bxf5 {[%clk 0:00:06.1]} 61... Rxb5 {[%clk 0:00:02.6]} 62. Bxg6
{[%clk 0:00:05.4]} 62... Rb6 {[%clk 0:00:03.2]} 63. Rxb6 {[%clk 0:00:03.8]}
63... Bxb6 {[%clk 0:00:04.1]} 64. f5 {[%clk 0:00:04.2]} 64... Kg7 {[%clk
0:00:04.7]} 65. Ke2 {[%clk 0:00:04.9]} 65... Kf6 {[%clk 0:00:05.6]} 66. Kf3
{[%clk 0:00:05.8]} 66... Bc7 {[%clk 0:00:06.1]} 67. Kg4 {[%clk 0:00:06.2]} 67...
Bd6 {[%clk 0:00:06.7]} 68. Kf3 {[%clk 0:00:06.3]} 68... Be7 {[%clk 0:00:07.3]}
69. Ke4 {[%clk 0:00:07.2]} 69... Bd6 {[%clk 0:00:07.9]} 70. Kf3 {[%clk
0:00:08.1]} 70... Be5 {[%clk 0:00:08.4]} 71. Kg4 {[%clk 0:00:08.2]} 71... Bd6
{[%clk 0:00:09.3]} 72. Kf3 {[%clk 0:00:08.6]} 1/2-1/2

[Event "*** SCC Grand Prix: Titled Tuesday Blitz"]
[Site "Chess.com"]
[Date "2020.06.23"]
[Round "6"]
[White "shnitez"]
[Black "Chess_Boxer123"]
[Result "0-1"]
[WhiteElo "2513"]
[BlackElo "2725"]
[TimeControl "180+1"]
[EndTime "11:07:52 PDT"]
[Termination "Chess_Boxer123 won on time"]

1. d4 {[%clk 0:03:00.9]} 1... d5 {[%clk 0:02:59.9]} 2. c4 {[%clk 0:03:00.7]}
2... c6 {[%clk 0:02:59.7]} 3. Nf3 {[%clk 0:03:00.4]} 3... Nf6 {[%clk 0:02:59.7]}
4. Nc3 {[%clk 0:03:00.5]} 4... e6 {[%clk 0:02:58.1]} 5. e3 {[%clk 0:02:59.5]}
5... Nbd7 {[%clk 0:02:57.4]} 6. Qc2 {[%clk 0:02:56.7]} 6... Bd6 {[%clk
0:02:56.9]} 7. b3 {[%clk 0:02:54.9]} 7... O-O {[%clk 0:02:56.3]} 8. Bb2 {[%clk
0:02:54.7]} 8... b6 {[%clk 0:02:56.7]} 9. Bd3 {[%clk 0:02:53.5]} 9... Bb7 {[%clk
0:02:56.9]} 10. O-O {[%clk 0:02:53]} 10... Qe7 {[%clk 0:02:57.2]} 11. e4 {[%clk
0:02:52.4]} 11... dxe4 {[%clk 0:02:57.2]} 12. Nxe4 {[%clk 0:02:53.1]} 12... Nxe4
{[%clk 0:02:57.8]} 13. Bxe4 {[%clk 0:02:54]} 13... Nf6 {[%clk 0:02:58.4]} 14.
Bd3 {[%clk 0:02:53.5]} 14... h6 {[%clk 0:02:57.6]} 15. Rfe1 {[%clk 0:02:53.2]}
15... c5 {[%clk 0:02:57.7]} 16. d5 {[%clk 0:02:53.2]} 16... Rae8 {[%clk
0:02:54]} 17. dxe6 {[%clk 0:02:49.7]} 17... Bxf3 {[%clk 0:02:53.6]} 18. exf7+
{[%clk 0:02:45.7]} 18... Qxf7 {[%clk 0:02:53.4]} 19. Bg6 {[%clk 0:01:52.9]}
19... Rxe1+ {[%clk 0:02:36.9]} 20. Rxe1 {[%clk 0:01:51]} 20... Qd7 {[%clk
0:02:12.3]} 21. gxf3 {[%clk 0:01:20.7]} 21... Qh3 {[%clk 0:02:10.2]} 22. Be5
{[%clk 0:01:19.2]} 22... Bxe5 {[%clk 0:01:54.5]} 23. Rxe5 {[%clk 0:01:20.1]}
23... Qxf3 {[%clk 0:01:54.6]} 24. Qe2 {[%clk 0:01:14.1]} 24... Qf4 {[%clk
0:01:49]} 25. Rf5 {[%clk 0:00:54.6]} 25... Qd4 {[%clk 0:01:43]} 26. Qe6+ {[%clk
0:00:47.3]} 26... Kh8 {[%clk 0:01:42.9]} 27. Qe7 {[%clk 0:00:22.9]} 27... Rd8
{[%clk 0:01:19.1]} 28. h3 {[%clk 0:00:21.8]} 28... Qd1+ {[%clk 0:01:02]} 29. Kg2
{[%clk 0:00:21.3]} 29... Qd4 {[%clk 0:00:54.6]} 30. Kg1 {[%clk 0:00:19]} 30...
Rg8 {[%clk 0:00:44.3]} 31. Kg2 {[%clk 0:00:14.3]} 31... Qb2 {[%clk 0:00:28.9]}
32. Kg1 {[%clk 0:00:12]} 32... Qxa2 {[%clk 0:00:25.5]} 33. Kg2 {[%clk
0:00:07.6]} 33... Qb2 {[%clk 0:00:20.4]} 34. Qxa7 {[%clk 0:00:06.8]} 34... Qxb3
{[%clk 0:00:20.2]} 35. Rxf6 {[%clk 0:00:04.9]} 35... Qxc4 {[%clk 0:00:18.2]} 36.
Qf7 {[%clk 0:00:03.6]} 36... Qxf7 {[%clk 0:00:16.8]} 37. Rxf7 {[%clk 0:00:03.4]}
37... Rb8 {[%clk 0:00:13.3]} 38. Rc7 {[%clk 0:00:03.4]} 38... Kg8 {[%clk
0:00:11.8]} 39. Kf3 {[%clk 0:00:03.5]} 39... Kf8 {[%clk 0:00:11.7]} 40. Ke4
{[%clk 0:00:03.9]} 40... b5 {[%clk 0:00:10.7]} 41. Rxc5 {[%clk 0:00:03.2]} 41...
b4 {[%clk 0:00:11.3]} 42. Rc2 {[%clk 0:00:03.5]} 42... b3 {[%clk 0:00:11.7]} 43.
Rb2 {[%clk 0:00:03.8]} 43... Ke7 {[%clk 0:00:12.1]} 44. f4 {[%clk 0:00:03.6]}
44... Kf6 {[%clk 0:00:12.4]} 45. f5 {[%clk 0:00:03.9]} 45... Rb4+ {[%clk
0:00:09.6]} 46. Kd3 {[%clk 0:00:03.1]} 46... Rh4 {[%clk 0:00:09.8]} 47. Rxb3
{[%clk 0:00:02]} 47... Rxh3+ {[%clk 0:00:10.3]} 48. Kc2 {[%clk 0:00:02.2]} 48...
Rh2+ {[%clk 0:00:08.1]} 49. Kc3 {[%clk 0:00:02.2]} 49... Rh3+ {[%clk 0:00:08.1]}
50. Kc4 {[%clk 0:00:02.6]} 50... Rh4+ {[%clk 0:00:08.3]} 51. Kd5 {[%clk
0:00:02.9]} 51... h5 {[%clk 0:00:08.6]} 52. Rb6+ {[%clk 0:00:02.2]} 52... Kg5
{[%clk 0:00:09.5]} 53. Rb7 {[%clk 0:00:03.1]} 53... Kh6 {[%clk 0:00:10.4]} 54.
Rb6 {[%clk 0:00:03.4]} 54... Kg5 {[%clk 0:00:10.2]} 55. Ke5 {[%clk 0:00:03.6]}
55... Rh1 {[%clk 0:00:09.6]} 56. Bf7 {[%clk 0:00:03.4]} 56... Re1+ {[%clk
0:00:09.6]} 57. Kd4 {[%clk 0:00:03.7]} 57... h4 {[%clk 0:00:09.9]} 58. Rg6+
{[%clk 0:00:03.3]} 58... Kxf5 {[%clk 0:00:10.3]} 59. Rxg7 {[%clk 0:00:04.2]}
59... h3 {[%clk 0:00:10.4]} 60. Bd5 {[%clk 0:00:03.4]} 60... h2 {[%clk
0:00:09.1]} 61. Rf7+ {[%clk 0:00:03.9]} 61... Kg4 {[%clk 0:00:09.1]} 62. Rh7
{[%clk 0:00:03.7]} 62... Kg3 {[%clk 0:00:09.2]} 63. Rg7+ {[%clk 0:00:03.8]}
63... Kf2 {[%clk 0:00:09.3]} 64. Rh7 {[%clk 0:00:04.7]} 64... Kg3 {[%clk
0:00:08.3]} 65. Rg7+ {[%clk 0:00:04.2]} 65... Kf4 {[%clk 0:00:08.7]} 66. Rh7
{[%clk 0:00:03.4]} 66... Rd1+ {[%clk 0:00:09]} 67. Kc5 {[%clk 0:00:03.3]} 67...
Rd2 {[%clk 0:00:09.3]} 68. Kd6 {[%clk 0:00:03.1]} 68... Ke3 {[%clk 0:00:09.8]}
69. Rf7 {[%clk 0:00:02.4]} 69... h1=Q {[%clk 0:00:05.9]} 70. Re7+ {[%clk
0:00:02]} 70... Kf4 {[%clk 0:00:06.2]} 71. Rf7+ {[%clk 0:00:01.3]} 71... Kg5
{[%clk 0:00:06.6]} 0-1

[Event "*** SCC Grand Prix: Titled Tuesday Blitz"]
[Site "Chess.com"]
[Date "2020.06.23"]
[Round "6"]
[White "budda"]
[Black "elohunter1999"]
[Result "1-0"]
[WhiteElo "2339"]
[BlackElo "2456"]
[TimeControl "180+1"]
[EndTime "11:07:55 PDT"]
[Termination "budda won on time"]

1. e4 {[%clk 0:03:00.9]} 1... e5 {[%clk 0:02:51.2]} 2. Nf3 {[%clk 0:03:00.9]}
2... Nc6 {[%clk 0:02:51]} 3. d4 {[%clk 0:03:01.8]} 3... exd4 {[%clk 0:02:50.9]}
4. Nxd4 {[%clk 0:03:02.7]} 4... Nf6 {[%clk 0:02:50.4]} 5. Nxc6 {[%clk
0:03:03.2]} 5... bxc6 {[%clk 0:02:50.7]} 6. e5 {[%clk 0:03:04.1]} 6... Qe7
{[%clk 0:02:50.9]} 7. Qe2 {[%clk 0:03:04.6]} 7... Nd5 {[%clk 0:02:51.1]} 8. c4
{[%clk 0:03:05.4]} 8... Ba6 {[%clk 0:02:48.5]} 9. b3 {[%clk 0:03:05.9]} 9... g6
{[%clk 0:02:47.7]} 10. g3 {[%clk 0:03:06.3]} 10... Bg7 {[%clk 0:02:47.4]} 11.
Bb2 {[%clk 0:03:06.6]} 11... O-O {[%clk 0:02:46.7]} 12. Bg2 {[%clk 0:03:07]}
12... Rae8 {[%clk 0:02:45]} 13. O-O {[%clk 0:03:07.2]} 13... Bxe5 {[%clk
0:02:44.8]} 14. Qxe5 {[%clk 0:03:04.5]} 14... Qxe5 {[%clk 0:02:45.7]} 15. Bxe5
{[%clk 0:03:04.9]} 15... Rxe5 {[%clk 0:02:46.2]} 16. cxd5 {[%clk 0:03:05.8]}
16... Bxf1 {[%clk 0:02:46.5]} 17. Kxf1 {[%clk 0:03:06.7]} 17... cxd5 {[%clk
0:02:46.8]} 18. Nc3 {[%clk 0:03:02.8]} 18... c6 {[%clk 0:02:46.7]} 19. Rd1
{[%clk 0:02:54.2]} 19... a5 {[%clk 0:02:34.5]} 20. Bf3 {[%clk 0:02:52.6]} 20...
Ra8 {[%clk 0:02:27.8]} 21. Rc1 {[%clk 0:02:49.5]} 21... Kf8 {[%clk 0:02:22.5]}
22. Na4 {[%clk 0:02:48.5]} 22... Ke7 {[%clk 0:02:20.1]} 23. Rc5 {[%clk 0:02:43]}
23... Kd6 {[%clk 0:02:15.8]} 24. h4 {[%clk 0:02:42.9]} 24... h5 {[%clk
0:02:01.4]} 25. Be2 {[%clk 0:02:37.6]} 25... Rae8 {[%clk 0:02:00.2]} 26. Bf3
{[%clk 0:02:37.9]} 26... Re1+ {[%clk 0:01:59.6]} 27. Kg2 {[%clk 0:02:38.4]}
27... Ra1 {[%clk 0:01:58.9]} 28. Rc2 {[%clk 0:02:35.6]} 28... Ree1 {[%clk
0:01:57.6]} 29. Be2 {[%clk 0:02:30.7]} 29... d4 {[%clk 0:01:40.9]} 30. Nb2
{[%clk 0:02:20.8]} 30... Rec1 {[%clk 0:01:32.6]} 31. Rd2 {[%clk 0:02:12.6]}
31... c5 {[%clk 0:01:30.9]} 32. Nc4+ {[%clk 0:02:09.5]} 32... Ke6 {[%clk
0:01:26.4]} 33. Nxa5 {[%clk 0:02:01.7]} 33... d5 {[%clk 0:01:26.2]} 34. Nc6
{[%clk 0:01:53.7]} 34... Kd6 {[%clk 0:01:04.3]} 35. Nd8 {[%clk 0:01:53.1]} 35...
f5 {[%clk 0:01:01.2]} 36. Nf7+ {[%clk 0:01:49.5]} 36... Ke6 {[%clk 0:01:00.5]}
37. Nd8+ {[%clk 0:01:40]} 37... Kf6 {[%clk 0:00:54.9]} 38. Nc6 {[%clk
0:01:34.3]} 38... g5 {[%clk 0:00:44.5]} 39. hxg5+ {[%clk 0:01:30.7]} 39... Kxg5
{[%clk 0:00:45.4]} 40. Ne7 {[%clk 0:01:27.6]} 40... f4 {[%clk 0:00:34.7]} 41.
Nxd5 {[%clk 0:00:59.9]} 41... fxg3 {[%clk 0:00:34.6]} 42. fxg3 {[%clk 0:01:00]}
42... h4 {[%clk 0:00:34.4]} 43. gxh4+ {[%clk 0:00:56.5]} 43... Kxh4 {[%clk
0:00:34.2]} 44. Kf3 {[%clk 0:00:56.9]} 44... Rg1 {[%clk 0:00:29.3]} 45. Ke4
{[%clk 0:00:39.5]} 45... Rg2 {[%clk 0:00:25.8]} 46. Kd3 {[%clk 0:00:35.4]} 46...
Rc1 {[%clk 0:00:24.2]} 47. a4 {[%clk 0:00:27.5]} 47... Rg3+ {[%clk 0:00:24.3]}
48. Ke4 {[%clk 0:00:22.1]} 48... Rxb3 {[%clk 0:00:24.9]} 49. a5 {[%clk
0:00:16.9]} 49... Re1 {[%clk 0:00:17.2]} 50. a6 {[%clk 0:00:16.8]} 50... Ra3
{[%clk 0:00:17.4]} 51. Kf4 {[%clk 0:00:12.8]} 51... Ra4 {[%clk 0:00:14.2]} 52.
Bb5 {[%clk 0:00:10.8]} 52... Ra3 {[%clk 0:00:14.3]} 53. Rh2+ {[%clk 0:00:09.5]}
53... Rh3 {[%clk 0:00:14.6]} 54. Rxh3+ {[%clk 0:00:10.1]} 54... Kxh3 {[%clk
0:00:15.5]} 55. Ba4 {[%clk 0:00:05.1]} 55... Ra1 {[%clk 0:00:15.4]} 56. Nb6
{[%clk 0:00:04.6]} 56... d3 {[%clk 0:00:15.7]} 57. Ke3 {[%clk 0:00:04.8]} 57...
c4 {[%clk 0:00:16]} 58. a7 {[%clk 0:00:05.1]} 58... Re1+ {[%clk 0:00:14.9]} 59.
Kd2 {[%clk 0:00:05]} 59... Re2+ {[%clk 0:00:15.4]} 60. Kd1 {[%clk 0:00:05.6]}
60... c3 {[%clk 0:00:13.2]} 61. a8=Q {[%clk 0:00:04.6]} 61... c2+ {[%clk
0:00:13.7]} 62. Bxc2 {[%clk 0:00:05]} 62... dxc2+ {[%clk 0:00:14.2]} 63. Kc1
{[%clk 0:00:05.5]} 63... Re1+ {[%clk 0:00:13.7]} 64. Kxc2 {[%clk 0:00:05.7]}
64... Rg1 {[%clk 0:00:14]} 65. Qh8+ {[%clk 0:00:05.3]} 65... Kg2 {[%clk
0:00:14.2]} 66. Qg8+ {[%clk 0:00:06.2]} 66... Kf1 {[%clk 0:00:14.6]} 67. Qf8+
{[%clk 0:00:07.1]} 67... Ke1 {[%clk 0:00:14.7]} 68. Nd5 {[%clk 0:00:07.5]} 68...
Rg2+ {[%clk 0:00:15.1]} 69. Kd3 {[%clk 0:00:07.7]} 69... Rd2+ {[%clk 0:00:15.3]}
70. Kc4 {[%clk 0:00:08.1]} 70... Rc2+ {[%clk 0:00:14.8]} 71. Nc3 {[%clk
0:00:08.4]} 71... Rf2 {[%clk 0:00:15]} 72. Qe7+ {[%clk 0:00:08.5]} 72... Kf1
{[%clk 0:00:15.4]} 73. Qe4 {[%clk 0:00:08.4]} 73... Kg1 {[%clk 0:00:14.2]} 74.
Nd5 {[%clk 0:00:08.3]} 74... Kf1 {[%clk 0:00:13.7]} 75. Nf4 {[%clk 0:00:08.5]}
75... Rh2 {[%clk 0:00:05.4]} 76. Qf3+ {[%clk 0:00:06.6]} 1-0

[Event "*** SCC Grand Prix: Titled Tuesday Blitz"]
[Site "Chess.com"]
[Date "2020.06.23"]
[Round "6"]
[White "Piotrek1979"]
[Black "Th3_Hound"]
[Result "1/2-1/2"]
[WhiteElo "2354"]
[BlackElo "2534"]
[TimeControl "180+1"]
[EndTime "11:08:06 PDT"]
[Termination "Game drawn by stalemate"]

1. Nf3 {[%clk 0:03:00.9]} 1... c5 {[%clk 0:02:58.1]} 2. c4 {[%clk 0:02:58.5]}
2... Nc6 {[%clk 0:02:57.7]} 3. d4 {[%clk 0:02:58.7]} 3... cxd4 {[%clk
0:02:57.7]} 4. Nxd4 {[%clk 0:02:59.5]} 4... g6 {[%clk 0:02:57.5]} 5. e4 {[%clk
0:02:56.7]} 5... Nf6 {[%clk 0:02:55.9]} 6. Nc3 {[%clk 0:02:55.6]} 6... Nxd4
{[%clk 0:02:56.3]} 7. Qxd4 {[%clk 0:02:54.8]} 7... d6 {[%clk 0:02:57.2]} 8. Be2
{[%clk 0:02:40.8]} 8... Bg7 {[%clk 0:02:57.1]} 9. Be3 {[%clk 0:02:38.3]} 9...
O-O {[%clk 0:02:57.5]} 10. Qd2 {[%clk 0:02:37.4]} 10... Be6 {[%clk 0:02:57.8]}
11. Rc1 {[%clk 0:02:28.2]} 11... Qa5 {[%clk 0:02:57.4]} 12. b3 {[%clk
0:02:05.2]} 12... Rfc8 {[%clk 0:02:50.7]} 13. f3 {[%clk 0:02:01.5]} 13... a6
{[%clk 0:02:50.6]} 14. Na4 {[%clk 0:01:59.1]} 14... Qxd2+ {[%clk 0:02:49.7]} 15.
Kxd2 {[%clk 0:01:59.2]} 15... Nd7 {[%clk 0:02:50.4]} 16. g4 {[%clk 0:01:50.2]}
16... Rab8 {[%clk 0:02:44.3]} 17. Ba7 {[%clk 0:01:44]} 17... Ra8 {[%clk
0:02:44.2]} 18. Be3 {[%clk 0:01:38.2]} 18... Rab8 {[%clk 0:02:40.3]} 19. Nc3
{[%clk 0:01:22]} 19... Nc5 {[%clk 0:02:17]} 20. Nd5 {[%clk 0:01:19.7]} 20...
Bxd5 {[%clk 0:02:16.1]} 21. cxd5 {[%clk 0:01:19.2]} 21... a5 {[%clk 0:01:59]}
22. Bb5 {[%clk 0:01:17.2]} 22... Bb2 {[%clk 0:01:58]} 23. Rc2 {[%clk 0:01:16.4]}
23... Ba3 {[%clk 0:01:58.1]} 24. Rhc1 {[%clk 0:01:16.4]} 24... Bxc1+ {[%clk
0:01:57.3]} 25. Rxc1 {[%clk 0:01:15.2]} 25... e6 {[%clk 0:01:55.5]} 26. Bxc5
{[%clk 0:01:10.3]} 26... dxc5 {[%clk 0:01:54.7]} 27. d6 {[%clk 0:01:09.2]} 27...
e5 {[%clk 0:01:52.2]} 28. Kc3 {[%clk 0:01:08.4]} 28... Rd8 {[%clk 0:01:50.4]}
29. Rd1 {[%clk 0:01:06.5]} 29... f6 {[%clk 0:01:47.4]} 30. Kc4 {[%clk
0:01:05.8]} 30... b6 {[%clk 0:01:46.8]} 31. Kd5 {[%clk 0:01:04.5]} 31... Kf7
{[%clk 0:01:47.2]} 32. d7 {[%clk 0:01:03.5]} 32... Ke7 {[%clk 0:01:46.8]} 33.
Kc6 {[%clk 0:01:03.6]} 33... Rh8 {[%clk 0:01:40.7]} 34. Rd6 {[%clk 0:00:50.5]}
34... h5 {[%clk 0:01:38.1]} 35. g5 {[%clk 0:00:46]} 35... Rhf8 {[%clk
0:01:36.5]} 36. Bc4 {[%clk 0:00:44.1]} 36... fxg5 {[%clk 0:01:35.3]} 37. Re6+
{[%clk 0:00:42.7]} 37... Kd8 {[%clk 0:01:35.6]} 38. Rxg6 {[%clk 0:00:42.3]}
38... g4 {[%clk 0:01:09.4]} 39. fxg4 {[%clk 0:00:41.5]} 39... hxg4 {[%clk
0:01:10.3]} 40. Rxg4 {[%clk 0:00:41.6]} 40... b5 {[%clk 0:01:10.9]} 41. Bxb5
{[%clk 0:00:40.4]} 41... Rf6+ {[%clk 0:01:07.2]} 42. Kxc5 {[%clk 0:00:40.4]}
42... Kc7 {[%clk 0:01:07.8]} 43. Rg7 {[%clk 0:00:34.3]} 43... Rh8 {[%clk
0:01:04.7]} 44. Re7 {[%clk 0:00:32.8]} 44... Rd8 {[%clk 0:01:00.7]} 45. Rxe5
{[%clk 0:00:19]} 45... Rh6 {[%clk 0:01:01.2]} 46. Kd4 {[%clk 0:00:14.8]} 46...
Rxh2 {[%clk 0:01:01.2]} 47. Rc5+ {[%clk 0:00:15.1]} 47... Kd6 {[%clk 0:01:01.6]}
48. Rc8 {[%clk 0:00:14.9]} 48... Ke7 {[%clk 0:00:58.2]} 49. a4 {[%clk
0:00:14.8]} 49... Rb2 {[%clk 0:00:57.7]} 50. Rxd8 {[%clk 0:00:13]} 50... Kxd8
{[%clk 0:00:57.3]} 51. Kc3 {[%clk 0:00:13.1]} 51... Rb1 {[%clk 0:00:56.7]} 52.
Kc2 {[%clk 0:00:12.3]} 52... Re1 {[%clk 0:00:55.8]} 53. Kd3 {[%clk 0:00:11.5]}
53... Rb1 {[%clk 0:00:55]} 54. Kc4 {[%clk 0:00:11.5]} 54... Re1 {[%clk
0:00:54.2]} 55. Kd5 {[%clk 0:00:11.5]} 55... Re3 {[%clk 0:00:53.8]} 56. e5
{[%clk 0:00:10.9]} 56... Rxb3 {[%clk 0:00:52.4]} 57. e6 {[%clk 0:00:08.8]} 57...
Ke7 {[%clk 0:00:52.5]} 58. Bc4 {[%clk 0:00:08.8]} 58... Rc3 {[%clk 0:00:52.1]}
59. Kc5 {[%clk 0:00:08.4]} 59... Rc1 {[%clk 0:00:49.4]} 60. Kb5 {[%clk
0:00:08.6]} 60... Rc2 {[%clk 0:00:47.8]} 61. Bd5 {[%clk 0:00:08.2]} 61... Rf2
{[%clk 0:00:44.7]} 62. Kc5 {[%clk 0:00:07.2]} 62... Rc2+ {[%clk 0:00:42.7]} 63.
Kb6 {[%clk 0:00:07.3]} 63... Rd2 {[%clk 0:00:41.8]} 64. Bc4 {[%clk 0:00:05.6]}
64... Rd4 {[%clk 0:00:38.5]} 65. Kc5 {[%clk 0:00:04.5]} 65... Rd2 {[%clk
0:00:37.3]} 66. Bd5 {[%clk 0:00:04.6]} 66... Rd1 {[%clk 0:00:32.2]} 67. Kc6
{[%clk 0:00:03]} 67... Rc1+ {[%clk 0:00:31.5]} 68. Kb6 {[%clk 0:00:03.4]} 68...
Rd1 {[%clk 0:00:30.2]} 69. Bc4 {[%clk 0:00:03.6]} 69... Rd4 {[%clk 0:00:28.9]}
70. Bb5 {[%clk 0:00:03.1]} 70... Kxe6 {[%clk 0:00:29]} 71. Kxa5 {[%clk
0:00:03.6]} 71... Ke7 {[%clk 0:00:29.4]} 72. Kb6 {[%clk 0:00:04.2]} 72... Rd6+
{[%clk 0:00:26.6]} 73. Kb7 {[%clk 0:00:04.2]} 73... Rd5 {[%clk 0:00:24.8]} 74.
Kc7 {[%clk 0:00:04.5]} 74... Rc5+ {[%clk 0:00:24.6]} 75. Kb6 {[%clk 0:00:04.6]}
75... Rd5 {[%clk 0:00:19.9]} 76. a5 {[%clk 0:00:04.6]} 76... Rxb5+ {[%clk
0:00:16.3]} 77. Kxb5 {[%clk 0:00:04.4]} 77... Kxd7 {[%clk 0:00:17.2]} 78. Kb6
{[%clk 0:00:04.9]} 78... Kc8 {[%clk 0:00:17.6]} 79. Ka7 {[%clk 0:00:05.1]} 79...
Kc7 {[%clk 0:00:17.9]} 80. a6 {[%clk 0:00:06]} 80... Kc8 {[%clk 0:00:17.7]} 81.
Kb6 {[%clk 0:00:06.9]} 81... Kb8 {[%clk 0:00:18.2]} 82. a7+ {[%clk 0:00:07.8]}
82... Ka8 {[%clk 0:00:18.8]} 83. Ka6 {[%clk 0:00:08.5]} 1/2-1/2